bitfinex-derivatives/quotes_BTCF0:USTF0_20250713
["timestamp","ask_amount","ask_price","bid_price","bid_amount"]
[1752429811137,0.084,118850.0,118840.0,0.2568803]
[1752429811338,0.084,118850.0,118840.0,2.07976606]
[1752429812337,0.088,118850.0,118840.0,2.07976606]
[1752429812738,0.092,118850.0,118840.0,2.07976606]
[1752429813545,0.092,118850.0,118840.0,1.79407751]
[1752429815140,0.0608,118850.0,118840.0,2.5087491]
[1752429815644,0.0608,118850.0,118840.0,2.51708276]
[1752429815847,0.012,118850.0,118840.0,2.51708276]
[1752429816237,0.012,118850.0,118840.0,2.80277131]
[1752429816438,0.012,118850.0,118840.0,2.51708276]
[1752429817050,0.012,118850.0,118840.0,2.81138276]
[1752429817250,0.0802,118870.0,118860.0,0.195322]
[1752429817445,0.0802,118870.0,118860.0,2.07661913]
[1752429817648,0.0802,118870.0,118860.0,1.79093058]
[1752429817849,0.0802,118870.0,118860.0,1.78893058]
[1752429818654,0.0832,118870.0,118860.0,1.78893058]
[1752429819344,0.0842,118870.0,118860.0,1.78893058]
[1752429820048,0.053,118870.0,118860.0,1.78893058]
[1752429820251,0.053,118870.0,118860.0,2.07461913]
[1752429820451,0.0842,118870.0,118860.0,2.07461913]
[1752429821050,0.0842,118870.0,118860.0,1.78893058]
[1752429823251,0.10201015,118870.0,118860.0,1.78893058]
[1752429824154,0.07081015,118870.0,118860.0,1.78893058]
[1752429824350,0.02201015,118870.0,118860.0,2.07461913]
[1752429824556,0.02201015,118870.0,118860.0,2.43541913]
[1752429824949,0.084,118890.0,118880.0,0.1889838]
[1752429825149,0.084,118890.0,118880.0,1.3832238]
[1752429825356,0.084,118890.0,118880.0,1.66891235]
[1752429826468,0.084,118890.0,118880.0,1.3832238]
[1752429826672,0.37068855,118890.0,118880.0,1.3832238]
[1752429826860,0.37068855,118890.0,118880.0,1.7440238]
[1752429827062,0.085,118890.0,118880.0,1.7440238]
[1752429827266,0.37068855,118890.0,118880.0,1.7440238]
[1752429827770,0.37168855,118890.0,118880.0,1.7440238]
[1752429828963,0.086,118890.0,118880.0,1.7440238]
[1752429831271,0.086,118890.0,118880.0,2.02971235]
[1752429832169,0.0868,118890.0,118880.0,2.02971235]
[1752429832973,0.0868,118890.0,118880.0,1.7440238]
[1752429833171,0.0548,118890.0,118880.0,1.7440238]
[1752429833569,0.0868,118890.0,118880.0,1.7440238]
[1752429834371,0.0868,118890.0,118880.0,2.02971235]
[1752429835576,0.0548,118890.0,118880.0,2.02971235]
[1752429836974,0.07237574,118890.0,118880.0,2.02971235]
[1752429840884,0.55821639,118890.0,118880.0,0.2124838]
[1752429841085,0.58212639,118890.0,118880.0,0.2124838]
[1752429841580,0.2001692,118880.0,118870.0,0.33441826]
[1752429841787,0.93546349,118880.0,118870.0,0.2752357]
[1752429842788,0.93546349,118880.0,118870.0,0.2762357]
[1752429843883,1.51678349,118880.0,118870.0,0.2762357]
[1752429845786,1.57734615,118880.0,118870.0,0.2762357]
[1752429846289,0.99602615,118880.0,118870.0,0.2762357]
[1752429846482,1.57734615,118880.0,118870.0,0.2762357]
[1752429846682,1.51678349,118880.0,118870.0,0.2762357]
[1752429851288,1.23109494,118880.0,118870.0,0.2762357]
[1752429851488,1.51678349,118880.0,118870.0,0.2762357]
[1752429852390,0.93546349,118880.0,118870.0,0.2762357]
[1752429852591,1.51642349,118880.0,118870.0,0.2762357]
[1752429854991,1.23073494,118880.0,118870.0,0.2762357]
[1752429855194,1.51642349,118880.0,118870.0,0.2762357]
[1752429856090,1.23073494,118880.0,118870.0,0.2762357]
[1752429856290,1.15562349,118880.0,118870.0,0.2762357]
[1752429857592,1.51642349,118880.0,118870.0,0.2762357]
[1752429858394,1.15562349,118880.0,118870.0,0.2762357]
[1752429858692,1.51642349,118880.0,118870.0,0.2762357]
[1752429863398,1.23073494,118880.0,118870.0,0.2762357]
[1752429863590,1.80211204,118880.0,118870.0,0.0012]
[1752429863785,1.80211204,118880.0,118870.0,0.1693935]
[1752429864295,0.2714635,118870.0,118860.0,0.27005788]
[1752429864494,0.93552779,118870.0,118860.0,0.27005788]
[1752429865299,0.93552779,118870.0,118860.0,0.27205788]
[1752429865499,0.93552779,118870.0,118860.0,0.27305788]
[1752429865698,0.93552779,118870.0,118860.0,0.29646788]
[1752429870697,0.93552779,118870.0,118860.0,0.25441668]
[1752429870896,0.93552779,118870.0,118860.0,0.23100668]
[1752429871199,0.93552779,118870.0,118860.0,0.02075858]
[1752429872694,0.93552779,118870.0,118860.0,0.003]
[1752429873301,0.2015118,118850.0,118840.0,0.25305247]
[1752429873604,1.51491609,118850.0,118840.0,0.18758477]
[1752429874005,1.51491609,118850.0,118840.0,0.21099477]
[1752429874203,1.68320409,118850.0,118840.0,0.18758477]
[1752429874410,0.2715201,118830.0,118820.0,0.03065]
[1752429874698,0.2715484,118810.0,118800.0,0.00361938]
[1752429874898,1.87617269,118810.0,118800.0,0.00361938]
[1752429875805,1.87617269,118810.0,118800.0,0.19532198]
[1752429876102,0.64992414,118810.0,118800.0,0.22286198]
[1752429876306,0.84525414,118810.0,118800.0,0.52577053]
[1752429876508,0.84525414,118810.0,118800.0,0.24008198]
[1752429876708,0.91123998,118810.0,118800.0,0.24008198]
[1752429877007,0.91123998,118810.0,118800.0,0.24308198]
[1752429877209,1.22083853,118810.0,118800.0,0.00961938]
[1752429877408,1.58163853,118810.0,118800.0,0.17791188]
[1752429877610,1.58163853,118810.0,118800.0,0.20132188]
[1752429878006,1.58163853,118810.0,118800.0,0.00961938]
[1752429878212,0.10327,118780.0,118770.0,0.1075738]
[1752429878405,1.54105675,118780.0,118770.0,0.3495084]
[1752429878605,0.8286009,118780.0,118770.0,0.7103084]
[1752429878904,0.84669002,118780.0,118770.0,0.71870232]
[1752429879103,0.168335,118770.0,118760.0,0.0036206]
[1752429879300,0.55729355,118770.0,118760.0,0.2269083]
[1752429879508,0.53338355,118770.0,118760.0,0.2269083]
[1752429879701,0.07936,118770.0,118760.0,0.90022685]
[1752429880213,0.04607,118770.0,118760.0,0.90022685]
[1752429880511,0.8290467,118780.0,118770.0,0.2501051]
[1752429880812,0.04607,118780.0,118770.0,0.90495227]
[1752429881010,0.2476809,118780.0,118770.0,0.61926372]
[1752429881213,0.07936,118780.0,118770.0,0.61926372]
[1752429881415,0.2476809,118780.0,118770.0,0.61926372]
[1752429881615,0.07936,118780.0,118770.0,0.61926372]
[1752429882912,0.04607,118780.0,118770.0,0.61926372]
[1752429883920,0.8300667,118790.0,118780.0,0.2500909]
[1752429884218,1.18893099,118790.0,118780.0,0.1917309]
[1752429884407,1.54973099,118790.0,118780.0,0.1917309]
[1752429884607,1.20696262,118790.0,118780.0,0.1917309]
[1752429885318,0.2715909,118780.0,118770.0,0.2761]
[1752429885510,0.60654519,118780.0,118770.0,0.2759]
[1752429885814,0.96734519,118780.0,118770.0,0.1917362]
[1752429886512,0.96734519,118780.0,118770.0,0.1937362]
[1752429887114,0.60654519,118780.0,118770.0,0.1937362]
[1752429888120,0.96734519,118780.0,118770.0,0.1937362]
[1752429888311,0.96734519,118780.0,118770.0,0.1937451]
[1752429888507,0.96734519,118780.0,118770.0,0.1947451]
[1752429892520,0.96734519,118780.0,118770.0,0.171335]
[1752429892814,0.98565994,118780.0,118770.0,0.171335]
[1752429893715,0.98565994,118780.0,118770.0,0.003]
[1752429893918,0.200945,118770.0,118760.0,0.1721692]
[1752429894123,1.56915018,118770.0,118760.0,0.1719698]
[1752429894309,1.56915018,118770.0,118760.0,0.0036206]
[1752429894618,1.56915018,118770.0,118760.0,0.1719698]
[1752429894914,0.2725292,118760.0,118750.0,0.0002]
[1752429895117,0.2725292,118760.0,118740.0,0.20921133]
[1752429895118,0.2725434,118750.0,118740.0,0.01803613]
[1752429895315,1.56925858,118750.0,118740.0,0.01783613]
[1752429896217,1.56925858,118750.0,118740.0,0.01883613]
[1752429896416,0.98661858,118750.0,118740.0,0.21021373]
[1752429896621,1.23506429,118750.0,118740.0,0.24276373]
[1752429897020,1.57001858,118750.0,118740.0,0.01883613]
[1752429897220,1.57001858,118750.0,118740.0,0.001]
[1752429897716,1.57001858,118750.0,118740.0,0.1693776]
[1752429897918,1.57001858,118750.0,118740.0,0.001]
[1752429898317,0.2725576,118740.0,118730.0,0.0002]
[1752429898513,0.2249118,118730.0,118720.0,0.00382182]
[1752429898714,1.63734366,118730.0,118720.0,0.00362182]
[1752429899418,1.63734366,118730.0,118720.0,0.17202772]
[1752429899618,1.63734366,118730.0,118720.0,0.00362182]
[1752429899820,1.63734366,118730.0,118720.0,0.17302772]
[1752429900019,1.63734366,118730.0,118720.0,0.00462182]
[1752429900525,1.63734366,118730.0,118720.0,0.17302772]
[1752429900821,1.63734366,118730.0,118720.0,0.00462182]
[1752429901521,1.63734366,118730.0,118720.0,0.17302772]
[1752429902324,1.63734366,118730.0,118720.0,0.17202772]
[1752429902526,1.63834366,118730.0,118720.0,0.17202772]
[1752429903427,1.63834366,118730.0,118720.0,0.17402772]
[1752429904723,1.63834366,118730.0,118720.0,0.17302772]
[1752429905226,1.63834366,118730.0,118720.0,0.00462182]
[1752429908728,0.2010159,118720.0,118710.0,0.0002]
[1752429908934,0.2726001,118710.0,118700.0,0.29376132]
[1752429909131,1.57063528,118710.0,118700.0,0.29356132]
[1752429910132,1.57063528,118710.0,118700.0,0.32911132]
[1752429910326,1.57063528,118710.0,118700.0,0.28700292]
[1752429910524,1.57063528,118710.0,118700.0,0.29000292]
[1752429910724,0.65172099,118710.0,118700.0,0.29000292]
[1752429910924,0.87468099,118710.0,118700.0,0.29000292]
[1752429912535,1.21157099,118710.0,118700.0,0.28597592]
[1752429912737,1.21157099,118710.0,118700.0,0.28605853]
[1752429913031,1.23548099,118710.0,118700.0,0.24797853]
[1752429914032,1.23548099,118710.0,118700.0,0.07955163]
[1752429914228,1.57043528,118710.0,118700.0,0.04700163]
[1752429917035,1.57043528,118710.0,118700.0,0.21543473]
[1752429917231,1.23553229,118710.0,118700.0,0.24798473]
[1752429917531,0.65177229,118710.0,118700.0,0.24798473]
[1752429917735,0.85078109,118710.0,118700.0,0.62101902]
[1752429918036,0.85078109,118710.0,118700.0,0.28606473]
[1752429918225,0.68236219,118710.0,118700.0,0.28606473]
[1752429918430,0.85078109,118710.0,118700.0,0.28606473]
[1752429918630,0.26706109,118710.0,118700.0,0.28606473]
[1752429918831,0.85090109,118710.0,118700.0,0.28606473]
[1752429919235,0.85090109,118710.0,118700.0,0.64686473]
[1752429921635,0.85090109,118710.0,118700.0,0.28606473]
[1752429921933,0.85094102,118710.0,118700.0,0.64686473]
[1752429922338,0.85094102,118710.0,118700.0,0.28606473]
[1752429927043,0.68252212,118710.0,118700.0,0.28606473]
[1752429927844,0.85094112,118710.0,118700.0,0.28606473]
[1752429928346,0.91150378,118710.0,118700.0,0.28606473]
[1752429928546,0.85094112,118710.0,118700.0,0.28606473]
[1752429929537,0.85094112,118710.0,118700.0,0.64686473]
[1752429929736,0.87485112,118710.0,118700.0,0.64686473]
[1752429930344,0.87485112,118710.0,118700.0,0.28606473]
[1752429931443,0.87485112,118710.0,118700.0,0.64686473]
[1752429931845,0.87485112,118710.0,118700.0,0.28606473]
[1752429934846,0.87485112,118710.0,118700.0,0.64686473]
[1752429935850,0.87493408,118710.0,118700.0,0.64686473]
[1752429938252,0.29109408,118710.0,118700.0,0.64686473]
[1752429938454,0.87405408,118710.0,118700.0,0.64686473]
[1752429939053,0.87405408,118710.0,118700.0,0.24798473]
[1752429939252,1.16026397,118710.0,118700.0,0.24798473]
[1752429939452,0.87405408,118710.0,118700.0,0.24798473]
[1752429939654,1.16026397,118710.0,118700.0,0.24798473]
[1752429942048,1.52106397,118710.0,118700.0,0.02400163]
[1752429942456,0.168433,118700.0,118690.0,0.0002]
[1752429942757,0.2720372,118690.0,118680.0,0.23840733]
[1752429942956,0.57674423,118690.0,118680.0,0.23820733]
[1752429943150,1.15946423,118690.0,118680.0,0.19610443]
[1752429943645,1.15946423,118690.0,118680.0,0.02764303]
[1752429943848,0.87325434,118690.0,118680.0,0.02764303]
[1752429944051,0.87325434,118690.0,118680.0,0.19610443]
[1752429944052,1.15946423,118690.0,118680.0,0.19610443]
[1752429944357,1.15946423,118690.0,118680.0,0.20110443]
[1752429944750,1.15946423,118690.0,118680.0,0.21371266]
[1752429945348,1.15946423,118690.0,118680.0,0.04525126]
[1752429945653,1.52026423,118690.0,118680.0,0.04525126]
[1752429945952,1.52026423,118690.0,118680.0,0.21371246]
[1752429948755,1.15946423,118690.0,118680.0,0.21371246]
[1752429949151,1.15946423,118690.0,118680.0,0.02123126]
[1752429949350,1.52026423,118690.0,118680.0,0.02123126]
[1752429949557,1.52024321,118690.0,118680.0,0.02123126]
[1752429950058,1.52024321,118690.0,118680.0,0.01262303]
[1752429954855,0.2713213,118680.0,118670.0,0.0002]
[1752429955055,0.2713355,118670.0,118660.0,0.0002]
[1752429955254,0.2713497,118660.0,118650.0,0.21004077]
[1752429955562,0.55755959,118660.0,118650.0,0.20984077]
[1752429956054,0.2713497,118660.0,118650.0,0.24307077]
[1752429956559,0.55755959,118660.0,118650.0,0.24807077]
[1752429956857,0.2713497,118660.0,118650.0,0.24807077]
[1752429957057,0.2713497,118660.0,118650.0,0.24707077]
[1752429957449,0.2713497,118660.0,118650.0,0.07856687]
[1752429957650,0.55755959,118660.0,118650.0,0.04533687]
[1752429958058,0.5760035,118660.0,118650.0,0.21584067]
[1752429958358,0.55755959,118660.0,118650.0,0.21584067]
[1752429958559,0.2713497,118660.0,118650.0,0.21584067]
[1752429959458,0.2713497,118660.0,118650.0,0.24907067]
[1752429959657,0.2713497,118660.0,118650.0,0.98741596]
[1752429959658,0.01843604,118660.0,118650.0,0.98741596]
[1752429959859,0.04907,118680.0,118670.0,0.1684754]
[1752429960058,0.002,118690.0,118680.0,0.2744012]
[1752429960260,0.002,118690.0,118680.0,1.50192098]
[1752429960562,0.002,118690.0,118680.0,1.38422309]
[1752429960959,0.002,118690.0,118680.0,1.67043298]
[1752429961266,0.002,118690.0,118680.0,1.38422309]
[1752429961962,0.003,118690.0,118680.0,1.38422309]
[1752429962553,0.005,118690.0,118680.0,1.38422309]
[1752429962762,0.07973,118720.0,118710.0,0.10594]
[1752429962959,0.2481344,118720.0,118710.0,2.1387417]
[1752429963163,0.2481344,118720.0,118710.0,1.8034786]
[1752429963663,0.2481344,118720.0,118710.0,1.8024786]
[1752429964068,0.2481344,118720.0,118710.0,1.81079995]
[1752429964371,0.2481344,118720.0,118710.0,1.8024786]
[1752429964871,0.2481344,118720.0,118710.0,1.8044786]
[1752429965766,0.2481344,118720.0,118710.0,1.8064786]
[1752429967374,0.2481344,118720.0,118710.0,1.81503372]
[1752429967873,0.2481344,118720.0,118710.0,1.45423372]
[1752429968068,0.2481344,118720.0,118710.0,1.81503372]
[1752429971473,0.2481344,118720.0,118710.0,1.27726]
[1752429971677,0.2712644,118720.0,118710.0,1.27726]
[1752429971869,0.98567514,118720.0,118710.0,1.22805]
[1752429972069,0.98567514,118720.0,118710.0,0.0275]
[1752429972278,0.62487514,118720.0,118710.0,0.0275]
[1752429972779,0.98567514,118720.0,118710.0,0.1959186]
[1752429973175,0.62487514,118720.0,118710.0,0.1959186]
[1752429973376,0.98567514,118720.0,118710.0,0.1959186]
[1752429973678,0.98567514,118720.0,118710.0,0.0275]
[1752429974379,0.98567514,118720.0,118710.0,0.1959186]
[1752429974581,1.56895514,118720.0,118710.0,0.1724186]
[1752429975079,1.56895514,118720.0,118710.0,0.1959186]
[1752429976482,1.20815514,118720.0,118710.0,0.1959186]
[1752429976982,1.56895514,118720.0,118710.0,0.1959186]
[1752429979179,1.20815514,118720.0,118710.0,0.1959186]
[1752429980985,1.56895514,118720.0,118710.0,0.1959186]
[1752429981887,1.20815514,118720.0,118710.0,0.1959186]
[1752429982387,1.56895514,118720.0,118710.0,0.1959186]
[1752429982987,1.51989487,118720.0,118710.0,0.1959186]
[1752429984688,1.15909487,118720.0,118710.0,0.1959186]
[1752429984984,1.14074723,118720.0,118710.0,0.1959186]
[1752429985289,1.2153444,118720.0,118710.0,0.1959186]
[1752429985488,1.14074723,118720.0,118710.0,0.1959186]
[1752429987687,1.50154723,118720.0,118710.0,0.1959186]
[1752429987887,1.14074723,118720.0,118710.0,0.1959186]
[1752429988887,1.50154723,118720.0,118710.0,0.1959186]
[1752429989079,1.14074723,118720.0,118710.0,0.1959186]
[1752429990387,1.15909926,118720.0,118710.0,0.1959186]
[1752429990992,1.51989926,118720.0,118710.0,0.0275]
[1752429991488,1.51989926,118720.0,118710.0,0.004]
[1752429993791,1.51989926,118720.0,118710.0,0.1724186]
[1752429993991,1.51989926,118720.0,118710.0,0.1953186]
[1752429994189,0.57581926,118720.0,118710.0,0.1953186]
[1752429994492,0.57581926,118720.0,118710.0,0.51218143]
[1752429994493,0.28961643,118720.0,118710.0,0.51218143]
[1752429994788,0.09808203,118720.0,118710.0,0.55746143]
[1752429995287,0.09808203,118720.0,118710.0,2.08106143]
[1752429996089,0.01835203,118720.0,118710.0,2.08106143]
[1752429996289,0.01266206,118720.0,118710.0,2.49953343]
[1752429996495,0.004,118730.0,118720.0,0.1990644]
[1752429996694,0.004,118730.0,118720.0,0.91424723]
[1752429997088,0.004,118730.0,118720.0,1.36890606]
[1752429997285,0.004,118730.0,118720.0,1.08270323]
[1752429997590,0.004,118730.0,118720.0,1.14929811]
[1752429997795,0.004,118730.0,118720.0,1.15029811]
[1752429998297,0.004,118730.0,118720.0,1.68650094]
[1752430002298,0.004,118730.0,118720.0,1.43650094]
[1752430005797,0.04682,118750.0,118740.0,0.2672155]
[1752430005998,0.2462413,118750.0,118740.0,2.07665833]
[1752430006197,0.2462413,118750.0,118740.0,2.09411348]
[1752430006396,0.07788,118750.0,118740.0,2.09411348]
[1752430007000,0.08088,118750.0,118740.0,2.09411348]
[1752430007393,0.2741413,118750.0,118740.0,2.09411348]
[1752430007599,0.2741413,118750.0,118740.0,1.76263065]
[1752430008302,0.578527,118750.0,118740.0,1.76263065]
[1752430008505,0.578527,118750.0,118740.0,1.40167065]
[1752430011498,0.29232417,118750.0,118740.0,1.40167065]
[1752430011701,0.578527,118750.0,118740.0,1.44695065]
[1752430011898,0.578527,118750.0,118740.0,1.80775065]
[1752430012101,0.29232417,118750.0,118740.0,1.80775065]
[1752430015304,0.578527,118750.0,118740.0,1.76247065]
[1752430020706,0.578527,118750.0,118740.0,1.80850065]
[1752430021503,0.578527,118750.0,118740.0,0.07101515]
[1752430021704,0.2750285,118740.0,118730.0,0.0002]
[1752430022004,0.2750341,118730.0,118720.0,0.05453457]
[1752430022210,0.5794198,118730.0,118720.0,0.22272287]
[1752430022602,0.5794198,118730.0,118720.0,0.58352287]
[1752430023807,0.5794198,118730.0,118720.0,0.58452287]
[1752430025208,0.29321697,118730.0,118720.0,0.63055287]
[1752430026002,0.26886697,118730.0,118720.0,0.63055287]
[1752430026197,0.29321697,118730.0,118720.0,0.63055287]
[1752430029903,0.10049287,118730.0,118720.0,0.9167557]
[1752430030215,0.06751287,118730.0,118720.0,0.9167557]
[1752430032412,0.01818287,118730.0,118720.0,0.9167557]
[1752430032610,0.01821529,118740.0,118730.0,0.03011]
[1752430032806,0.3348408,118750.0,118740.0,0.2444996]
[1752430033007,0.35305566,118750.0,118740.0,0.2670396]
[1752430033206,0.35305566,118750.0,118740.0,0.6278396]
[1752430033512,0.31096766,118750.0,118740.0,0.6278396]
[1752430034009,0.27187026,118750.0,118740.0,0.91404243]
[1752430034409,0.27187026,118750.0,118740.0,0.6278396]
[1752430034605,0.27287026,118750.0,118740.0,0.6278396]
[1752430035209,0.10452486,118750.0,118740.0,0.6278396]
[1752430035617,0.27287026,118750.0,118740.0,0.6278396]
[1752430036713,0.10452486,118750.0,118740.0,0.91404243]
[1752430038504,0.02221486,118750.0,118740.0,0.91404243]
[1752430039713,0.02221486,118750.0,118740.0,0.93136886]
[1752430043123,0.07154486,118750.0,118740.0,0.93136886]
[1752430044218,0.23989026,118750.0,118740.0,0.93136886]
[1752430044818,0.07154486,118750.0,118740.0,0.93136886]
[1752430045016,0.27101026,118750.0,118740.0,0.93136886]
[1752430050629,0.10266486,118750.0,118740.0,0.93136886]
[1752430050924,0.07154486,118750.0,118740.0,0.93136886]
[1752430053722,0.23989026,118750.0,118740.0,0.93136886]
[1752430053923,0.27101026,118750.0,118740.0,0.93136886]
[1752430060222,0.10266486,118750.0,118740.0,0.93136886]
[1752430060419,0.07154486,118750.0,118740.0,0.93136886]
[1752430062016,0.06854486,118750.0,118740.0,0.93136886]
[1752430062322,0.02021486,118750.0,118740.0,0.93136886]
[1752430062522,0.01921486,118750.0,118740.0,1.29216886]
[1752430068229,0.06057205,118760.0,118750.0,0.1683454]
[1752430068421,0.07899453,118760.0,118750.0,2.06529823]
[1752430068728,0.12840453,118760.0,118750.0,2.06529823]
[1752430069330,0.12940453,118760.0,118750.0,2.06529823]
[1752430070728,0.12840453,118760.0,118750.0,2.06529823]
[1752430071130,0.06883248,118760.0,118750.0,2.06529823]
[1752430071734,0.23716368,118760.0,118750.0,2.06529823]
[1752430072932,0.06883248,118760.0,118750.0,2.06529823]
[1752430073139,0.06883248,118760.0,118750.0,2.07354014]
[1752430073437,0.01942248,118760.0,118750.0,2.07354014]
[1752430073735,0.004,118770.0,118750.0,2.03144744]
[1752430073932,0.07971506,118770.0,118760.0,0.85675238]
[1752430074334,0.004,118770.0,118760.0,1.15105238]
[1752430074539,0.004,118770.0,118760.0,1.43725521]
[1752430074838,0.004,118770.0,118760.0,1.50438045]
[1752430075038,0.004,118770.0,118760.0,1.21817762]
[1752430075239,0.007,118770.0,118760.0,1.21817762]
[1752430076239,0.07643506,118790.0,118780.0,0.1849629]
[1752430076440,0.00072,118790.0,118780.0,2.64586573]
[1752430076835,0.00072,118790.0,118780.0,2.64486573]
[1752430077733,0.07971506,118810.0,118800.0,0.1682746]
[1752430077938,0.00396,118810.0,118800.0,2.36928847]
[1752430078140,0.00396,118810.0,118800.0,2.6554913]
[1752430078343,0.00396,118810.0,118800.0,2.36928847]
[1752430078537,0.02866,118810.0,118800.0,2.36928847]
[1752430078737,0.56467323,118810.0,118800.0,1.72228564]
[1752430078943,0.2794704,118810.0,118800.0,1.72228564]
[1752430080845,0.2804704,118810.0,118800.0,1.72228564]
[1752430081543,0.56667323,118810.0,118800.0,1.72228564]
[1752430082647,0.56667323,118810.0,118800.0,1.34482564]
[1752430082945,0.56667323,118810.0,118800.0,1.17655104]
[1752430083146,0.56667323,118810.0,118800.0,1.34482564]
[1752430083943,0.2745246,118800.0,118790.0,2.0661214]
[1752430084249,0.56072743,118800.0,118790.0,2.0659214]
[1752430085548,0.56072743,118800.0,118790.0,2.0669214]
[1752430086147,0.56072743,118800.0,118790.0,1.4537]
[1752430086350,0.56072743,118800.0,118790.0,1.6219888]
[1752430086848,0.56072743,118800.0,118790.0,1.6229888]
[1752430087148,0.56072743,118800.0,118790.0,1.3286888]
[1752430088247,0.56072743,118800.0,118790.0,0.1702888]
[1752430088751,0.57864853,118800.0,118790.0,0.1702888]
[1752430090252,0.57864853,118800.0,118790.0,0.1703288]
[1752430096148,1.69409676,118800.0,118780.0,0.0002]
[1752430096352,0.2745671,118770.0,118760.0,0.22985285]
[1752430096555,0.56076993,118770.0,118760.0,0.18777005]
[1752430096951,1.13992993,118770.0,118760.0,0.18777005]
[1752430097155,1.16577862,118770.0,118760.0,0.18777005]
[1752430097654,1.15751121,118770.0,118760.0,0.18877005]
[1752430099148,0.31122995,118760.0,118750.0,0.55409526]
[1752430099354,0.38673123,118760.0,118750.0,0.72244076]
[1752430099551,0.43506123,118760.0,118750.0,0.72244076]
[1752430100058,0.40184123,118760.0,118750.0,1.00864359]
[1752430100252,0.37714123,118760.0,118750.0,1.00964359]
[1752430100551,0.32881123,118760.0,118750.0,1.00964359]
[1752430100855,0.37714123,118760.0,118750.0,1.01064359]
[1752430104860,0.37714123,118760.0,118750.0,1.30494359]
[1752430105159,0.40106123,118760.0,118750.0,1.30494359]
[1752430106960,0.38347995,118760.0,118750.0,1.30494359]
[1752430108264,0.41430995,118760.0,118750.0,1.30494359]
[1752430111457,0.58264125,118760.0,118750.0,0.93456896]
[1752430111669,0.70051278,118760.0,118750.0,0.93456896]
[1752430112767,0.41430995,118760.0,118750.0,0.93456896]
[1752430113068,0.41430995,118760.0,118750.0,1.22077179]
[1752430114867,0.35955995,118760.0,118750.0,1.22077179]
[1752430115067,0.38347995,118760.0,118750.0,1.22077179]
[1752430116674,0.38347995,118760.0,118750.0,0.92647179]
[1752430119376,0.38347995,118760.0,118750.0,0.56567179]
[1752430119674,0.38347995,118760.0,118750.0,0.92651179]
[1752430120576,0.35955995,118760.0,118750.0,0.92651179]
[1752430120978,0.31122995,118760.0,118750.0,1.09492779]
[1752430121276,0.29456995,118760.0,118750.0,1.38922779]
[1752430124980,0.29456995,118760.0,118750.0,1.75002779]
[1752430126381,0.29456995,118760.0,118750.0,1.81034372]
[1752430128781,0.29456995,118760.0,118750.0,1.64192772]
[1752430142196,0.29456995,118760.0,118750.0,0.92032772]
[1752430142395,0.29456995,118760.0,118750.0,1.64192772]
[1752430143798,0.29456995,118760.0,118750.0,0.92032772]
[1752430143998,0.29456995,118760.0,118750.0,1.64192772]
[1752430144598,0.39819995,118760.0,118750.0,1.64192772]
[1752430145895,0.39819995,118760.0,118750.0,1.62526772]
[1752430146096,0.68440278,118760.0,118750.0,1.33906489]
[1752430146300,0.68440278,118760.0,118750.0,1.27874896]
[1752430146702,0.39819995,118760.0,118750.0,1.27874896]
[1752430148999,0.85273408,118760.0,118750.0,2.14264896]
[1752430150102,0.39819995,118760.0,118750.0,2.14264896]
[1752430151092,0.39819995,118760.0,118750.0,1.78184896]
[1752430156906,0.68440278,118760.0,118750.0,1.78184896]
[1752430157107,0.70201944,118760.0,118750.0,1.78184896]
[1752430157498,0.87035074,118760.0,118750.0,1.78184896]
[1752430162707,0.87035074,118760.0,118750.0,0.62364896]
[1752430163613,0.87035074,118760.0,118750.0,0.62314896]
[1752430175925,1.16314791,118760.0,118750.0,0.90935179]
[1752430176123,0.58414791,118760.0,118750.0,0.62314896]
[1752430176424,1.16314791,118760.0,118750.0,0.62314896]
[1752430176619,0.58414791,118760.0,118750.0,0.62314896]
[1752430176824,1.44935074,118760.0,118750.0,0.62314896]
[1752430178725,0.87035074,118760.0,118750.0,0.62314896]
[1752430179025,1.44935074,118760.0,118750.0,0.62314896]
[1752430179328,0.87035074,118760.0,118750.0,0.62314896]
[1752430179522,1.44935074,118760.0,118750.0,0.62314896]
[1752430179825,0.70201944,118760.0,118750.0,0.62314896]
[1752430180027,0.41581661,118760.0,118750.0,0.90935179]
[1752430180226,0.38524661,118760.0,118750.0,0.90935179]
[1752430180426,0.31218661,118760.0,118750.0,1.27015179]
[1752430180622,0.29456995,118760.0,118750.0,1.27015179]
[1752430181425,0.29456995,118760.0,118750.0,1.33046772]
[1752430183426,0.36471995,118760.0,118750.0,1.33046772]
[1752430184729,0.36471995,118760.0,118750.0,1.62476772]
[1752430187229,0.36471995,118760.0,118750.0,1.56445179]
[1752430189732,0.39771995,118760.0,118750.0,1.56445179]
[1752430196939,0.39771995,118760.0,118750.0,1.27824896]
[1752430197139,0.39771995,118760.0,118750.0,1.56445179]
[1752430197735,0.39771995,118760.0,118750.0,1.27824896]
[1752430198037,0.39771995,118760.0,118750.0,1.56445179]
[1752430200240,0.68392278,118760.0,118750.0,1.27824896]
[1752430204046,0.39771995,118760.0,118750.0,1.27824896]
[1752430205453,0.39771995,118760.0,118750.0,0.98394896]
[1752430207054,0.41534722,118760.0,118750.0,0.98394896]
[1752430208359,0.41534722,118760.0,118750.0,0.26234896]
[1752430208553,0.41534722,118760.0,118750.0,0.62314896]
[1752430214661,0.41535414,118760.0,118750.0,0.62314896]
[1752430214961,0.62980583,118760.0,118750.0,0.83760065]
[1752430223880,0.29456995,118760.0,118750.0,1.05205234]
[1752430224175,0.36811995,118760.0,118750.0,1.05205234]
[1752430227373,0.36811995,118760.0,118750.0,1.41285234]
[1752430229183,0.36811995,118760.0,118750.0,1.70715234]
[1752430230079,0.29456995,118760.0,118750.0,1.70715234]
[1752430231077,0.36811995,118760.0,118750.0,1.70715234]
[1752430232380,0.36811995,118760.0,118750.0,1.76746827]
[1752430233582,0.36811995,118760.0,118750.0,1.70164007]
[1752430233882,0.36811995,118760.0,118750.0,1.64132414]
[1752430234388,0.38589654,118760.0,118750.0,1.64132414]
[1752430235183,0.36811995,118760.0,118750.0,1.64132414]
[1752430237885,0.36811995,118760.0,118750.0,1.64951997]
[1752430240286,0.3123446,118760.0,118750.0,1.64951997]
[1752430240485,0.02426,118790.0,118750.0,2.14822283]
[1752430240679,0.0177737,118790.0,118780.0,1.61546807]
[1752430240881,0.0177737,118790.0,118780.0,2.57562291]
[1752430241086,0.02426,118800.0,118790.0,0.1682888]
[1752430241390,0.04203026,118800.0,118790.0,0.82575049]
[1752430241893,0.04203026,118800.0,118790.0,0.82275049]
[1752430242492,0.04603026,118800.0,118790.0,0.82275049]
[1752430242790,0.02826,118800.0,118790.0,0.82075049]
[1752430243089,0.02826,118800.0,118790.0,0.95855756]
[1752430243289,0.07755,118800.0,118790.0,0.95855756]
[1752430243492,0.07755,118800.0,118790.0,0.89197472]
[1752430244092,0.07355,118800.0,118790.0,0.89197472]
[1752430244591,0.07355,118800.0,118790.0,0.89297472]
[1752430246992,0.09127838,118800.0,118790.0,0.89297472]